bitfinex-derivatives/quotes_SOLF0:USTF0_20250310
["timestamp","ask_amount","ask_price","bid_price","bid_amount"]
[1741631548718,0.05889942,118.44,118.41,0.06083232]
[1741631550218,344.60042772,118.51,118.41,2.60083232]
[1741631550419,344.60042772,118.51,118.4,327.86612772]
[1741631550613,8.4444,118.48,118.4,329.5553169]
[1741631551117,8.4436,118.49,118.45,8.446]
[1741631551519,344.60042772,118.51,118.43,0.05967843]
[1741631551819,0.05905087,118.48,118.46,0.05523136]
[1741631552219,0.05905087,118.48,118.47,8.445]
[1741631552420,278.32,118.51,118.46,0.05523136]
[1741631552620,8.4414,118.52,118.48,8.4436]
[1741631552821,8.4414,118.52,118.46,0.05523136]
[1741631552822,8.4414,118.52,118.47,4.183]
[1741631553023,66.28042772,118.53,118.47,4.183]
[1741631553720,0.06480519,118.51,118.49,0.05927518]
[1741631554816,8.4428,118.5,118.49,0.05927518]
[1741631555519,66.28042772,118.48,118.41,8.6492]
[1741631555714,123.96042772,118.5,118.41,8.6492]
[1741631555912,132.40332772,118.5,118.45,8.446]
[1741631556315,123.96042772,118.5,118.41,8.6492]
[1741631556620,66.28042772,118.52,118.49,8.4435]
[1741631556819,0.06171256,118.47,118.44,0.06224749]
[1741631557016,66.28042772,118.52,118.49,0.05818297]
[1741631557411,66.33378904,118.52,118.49,0.05521429]
[1741631557616,66.28042772,118.5,118.49,0.05521429]
[1741631557818,66.33378904,118.52,118.49,0.05521429]
[1741631559024,8.4425,118.51,118.49,0.05521429]
[1741631559228,66.33378904,118.52,118.49,0.05521429]
[1741631559425,66.28042772,118.5,118.49,0.05521429]
[1741631559926,66.28042772,118.5,118.43,4.3639]
[1741631560225,66.28042772,118.48,118.43,4.3639]
[1741631561227,0.05843102,118.47,118.44,0.05942245]
[1741631561628,0.05843102,118.47,118.45,8.446]
[1741631562121,0.05843102,118.47,118.44,0.05942245]
[1741631562929,66.28042772,118.46,118.44,0.05942245]
[1741631563226,8.4464,118.45,118.44,0.05942245]
[1741631563616,66.28042772,118.46,118.37,12.6382]
[1741631563827,66.28042772,118.42,118.37,12.6382]
[1741631564429,66.28042772,118.42,118.38,8.4513]
[1741631564727,66.28042772,118.42,118.37,12.6382]
[1741631564928,0.063957,118.41,118.39,8.50934616]
[1741631565120,0.063957,118.41,118.39,0.05934616]
[1741631565325,8.45,118.4,118.39,0.05934616]
[1741631565523,74.73042772,118.4,118.39,0.05934616]
[1741631565927,66.28042772,118.4,118.39,0.05934616]
[1741631566132,0.063957,118.41,118.39,0.05934616]
[1741631566930,66.28042772,118.4,118.39,0.05934616]
[1741631567329,0.063957,118.41,118.39,0.05934616]
[1741631570135,0.063957,118.41,118.4,8.45]
[1741631570332,0.063957,118.41,118.39,0.05934616]
[1741631570529,8.513557,118.41,118.39,0.05934616]
[1741631570731,0.063957,118.41,118.39,0.05934616]
[1741631571134,0.063957,118.41,118.4,8.45]
[1741631571331,0.063957,118.41,118.39,0.05934616]
[1741631571730,8.513557,118.41,118.39,0.05934616]
[1741631572032,0.063957,118.41,118.39,0.05934616]
[1741631572238,8.45,118.4,118.39,0.05934616]
[1741631572435,66.34438472,118.41,118.33,8.4174]
[1741631572627,334.68,118.42,118.33,4.3358]
[1741631572628,66.28042772,118.37,118.33,4.3358]
[1741631572832,66.28042772,118.35,118.32,4.3916]
[1741631573039,66.28042772,118.37,118.32,4.3916]
[1741631573335,66.28042772,118.37,118.31,92.86142937]
[1741631573336,66.28042772,118.34,118.31,92.86142937]
[1741631573531,122.40042772,118.37,118.31,92.86142937]
[1741631573532,66.28042772,118.32,118.31,92.86142937]
[1741631573735,66.28042772,118.32,118.31,92.92613592]
[1741631576040,66.28042772,118.32,118.31,0.06470655]
[1741631576445,122.04042772,118.32,118.26,101.26692937]
[1741631576639,66.28042772,118.3,118.26,92.86142937]
[1741631576839,66.28042772,118.28,118.26,92.86142937]
[1741631577045,55.94,118.27,118.26,92.86142937]
[1741631577240,55.94,118.27,118.25,368.10665939]
[1741631577453,66.28042772,118.26,118.25,368.10665939]
[1741631577845,0.06221696,118.27,118.25,368.16169139]
[1741631579347,278.84,118.33,118.25,426.58169139]
[1741631579554,278.84,118.33,118.26,8.5455]
[1741631580440,0.05431286,118.31,118.28,0.05667176]
[1741631582250,122.08042772,118.3,118.2,191.0]
[1741631582450,66.28042772,118.27,118.2,195.4053]
[1741631582744,66.28042772,118.25,118.2,4.4053]
[1741631582950,66.28042772,118.27,118.2,4.4053]
[1741631583145,8.462,118.24,118.2,4.4053]
[1741631583351,66.28042772,118.25,118.22,0.05589573]
[1741631583352,66.28042772,118.23,118.22,0.05589573]
[1741631583544,122.74299252,118.25,118.22,0.05589573]
[1741631583850,66.28042772,118.23,118.22,0.05589573]
[1741631584346,74.74252772,118.23,118.22,0.05589573]
[1741631584551,66.28042772,118.23,118.22,0.05589573]
[1741631584753,122.74299252,118.25,118.22,0.05589573]
[1741631585348,131.20389252,118.25,118.22,0.05589573]
[1741631585549,124.42042772,118.24,118.22,0.05589573]
[1741631585950,124.42042772,118.24,118.17,4.0592]
[1741631586157,66.28042772,118.21,118.17,4.0592]
[1741631586353,66.28042772,118.19,118.16,4.4053]
[1741631587354,66.33570538,118.19,118.16,4.46664715]
[1741631588248,0.05527766,118.19,118.16,4.46664715]
[1741631588450,66.28042772,118.23,118.16,4.46664715]
[1741631588652,66.28042772,118.21,118.16,4.46664715]
[1741631588851,66.28042772,118.23,118.16,4.46664715]
[1741631589047,66.28042772,118.21,118.16,4.4053]
[1741631589349,66.28042772,118.19,118.16,4.4053]
[1741631589554,66.28042772,118.19,118.17,0.06226546]
[1741631589853,0.05670982,118.2,118.17,0.06226546]
[1741631590254,0.05670982,118.2,118.17,8.52866546]
[1741631590450,0.05670982,118.2,118.17,0.06226546]
[1741631590953,66.28042772,118.19,118.17,0.06226546]
[1741631591356,404.50042772,118.19,118.17,0.06226546]
[1741631592257,404.50042772,118.19,118.12,12.7035]
[1741631592450,66.28042772,118.16,118.12,12.7035]
[1741631592653,8.4687,118.14,118.09,8.4719]
[1741631592957,66.28042772,118.14,118.09,4.3318]
[1741631593351,0.06359178,118.13,118.1,0.06180913]
[1741631593547,66.28042772,118.12,118.1,0.06180913]
[1741631594054,0.06359178,118.13,118.1,0.06180913]
[1741631594257,59.58,118.17,118.1,0.06180913]
[1741631594550,66.28042772,118.14,118.1,0.06180913]
[1741631594753,25.34,118.1,117.95,138.03999727]
[1741631594946,66.28042772,117.96,117.95,138.03999727]
[1741631595151,66.28042772,117.96,117.93,459.59248557]
[1741631595452,66.28042772,117.96,117.94,184.74330563]
[1741631595745,8.4822,117.95,117.94,184.74330563]
[1741631595944,59.58,117.95,117.94,184.80186547]
[1741631597956,0.05794299,117.96,117.94,0.05855984]
[1741631598357,345.46042772,118.0,117.94,0.05855984]
[1741631599560,66.33455805,117.98,117.94,0.05855984]
[1741631599949,0.05413033,117.98,117.94,0.05855984]
[1741631601051,66.33455805,117.98,117.94,0.05855984]
[1741631601557,132.56085544,117.96,117.89,8.5476]
[1741631601753,66.28042772,117.91,117.84,191.0]
[1741631601957,66.28042772,117.87,117.79,8.5163]
[1741631602150,66.28042772,117.85,117.79,199.5163]
[1741631602351,66.28042772,117.91,117.79,191.0]
[1741631602352,66.28042772,117.83,117.79,191.0]
[1741631602555,66.28042772,117.81,117.75,191.0]
[1741631602949,66.28042772,117.81,117.8,0.06495078]
[1741631603254,66.28042772,117.83,117.71,262.5816]
[1741631603454,0.06334947,117.82,117.79,0.05423983]
[1741631603656,279.54,117.85,117.75,66.28042772]
[1741631603966,0.05411567,117.82,117.79,0.05894729]
[1741631604154,66.28042772,117.82,117.79,0.05894729]
[1741631604466,66.28042772,117.86,117.79,0.05894729]
[1741631604759,66.28042772,117.88,117.76,66.28042772]
[1741631604960,346.00042772,117.9,117.78,66.28042772]
[1741631605159,66.28042772,117.94,117.82,66.28042772]
[1741631605363,279.72,117.95,117.86,66.28042772]
[1741631606060,279.72,118.0,117.9,66.28042772]
[1741631606262,8.4843,117.92,117.91,8.5527]
[1741631606461,66.28042772,117.98,117.91,8.5527]
[1741631606661,0.05721042,117.93,117.9,0.06254116]
[1741631606859,66.28042772,117.94,117.84,8.5527]
[1741631607160,0.0562478,117.93,117.9,0.05732328]
[1741631607362,66.28042772,117.96,117.9,0.05732328]
[1741631607557,0.0633932,117.93,117.84,8.5527]
[1741631607762,279.78,117.93,117.84,8.5527]
[1741631608064,279.78,117.99,117.88,66.28042772]
[1741631608967,279.78,117.99,117.9,66.28042772]
[1741631609369,0.06104789,117.96,117.93,0.05644341]
[1741631610067,8.4829,117.94,117.93,0.05644341]
[1741631610568,0.06104789,117.96,117.93,0.05644341]
[1741631611362,279.78,117.99,117.93,0.05644341]
[1741631612067,8.4829,117.94,117.93,0.05644341]
[1741631612469,0.06334734,117.95,117.93,0.05644341]
[1741631612774,8.4829,117.94,117.93,0.05644341]
[1741631613272,0.06334734,117.95,117.93,0.05644341]
[1741631614671,66.28042772,117.94,117.82,191.0]
[1741631614973,66.28042772,117.96,117.83,8.5617]
[1741631614974,66.28042772,117.92,117.83,8.5617]
[1741631615167,66.28042772,117.9,117.83,8.5617]
[1741631615367,8.4863,117.9,117.83,17.0519]
[1741631615563,279.82,117.91,117.83,8.5617]
[1741631615971,0.06112469,117.88,117.86,0.05439841]
[1741631616172,279.82,117.96,117.86,66.33482613]
[1741631616569,279.82,117.96,117.86,66.28042772]
[1741631616766,66.56562772,117.98,117.86,66.28042772]
[1741631616971,8.4827,117.95,117.87,66.28042772]
[1741631617269,279.88,117.98,117.89,66.28042772]
[1741631617470,8.4818,117.96,117.9,4.08811166]
[1741631617676,279.88,117.98,117.9,4.08811166]
[1741631617872,0.2858,118.03,117.93,66.28042772]
[1741631618075,8.4783,118.01,117.95,8.4822]
[1741631618274,279.88,118.05,117.96,4.0309]
[1741631618569,66.28042772,118.04,117.96,4.0309]
[1741631618777,0.05706205,118.02,117.99,0.05434505]
[1741631619173,66.28042772,118.0,117.92,4.1133]
[1741631619373,0.05706205,118.02,117.92,4.1133]
[1741631619676,66.28042772,118.03,117.92,4.1133]
[1741631619977,66.28042772,118.03,117.93,66.28042772]
[1741631620175,346.16042772,118.05,117.93,257.28042772]
[1741631620373,346.16042772,118.05,117.95,66.28042772]
[1741631620574,0.0581134,117.99,117.97,0.05578641]
[1741631620971,0.2858,118.07,117.94,66.28042772]
[1741631621274,0.05349674,117.99,117.97,0.05757037]
[1741631621481,66.28042772,118.08,117.98,66.28042772]
[1741631621681,66.28042772,118.08,117.99,4.2641]
[1741631621979,66.56322772,118.1,118.0,66.28042772]
[1741631622280,346.12042772,118.12,118.0,66.28042772]
[1741631622479,346.12042772,118.12,118.01,4.1925]
[1741631622680,0.05814107,118.07,118.05,0.0555246]
[1741631623183,66.28042772,118.06,117.99,4.2641]
[1741631623375,8.4763,118.04,117.99,4.2641]
[1741631623678,66.28042772,118.06,117.99,4.2641]
[1741631623972,8.53194107,118.07,117.99,4.2641]
[1741631624179,66.28042772,118.1,117.99,4.2641]
[1741631624369,66.28042772,118.1,117.99,70.54452772]
[1741631624777,346.12042772,118.12,118.01,66.28042772]
[1741631624973,66.28042772,118.26,118.03,66.28042772]
[1741631624974,66.28042772,118.14,118.03,66.28042772]
[1741631625479,0.06132051,118.1,118.07,0.06411999]
[1741631625676,0.06132051,118.1,118.09,8.4721]
[1741631625873,8.4681,118.15,118.07,0.06411999]
[1741631626078,288.2071,118.16,118.11,8.4702]
[1741631626280,66.28042772,118.19,118.08,4.0131]
[1741631626575,1.81316531,118.24,118.12,66.28042772]
[1741631626780,0.3399,118.24,118.14,66.28042772]
[1741631627078,0.06266858,118.19,118.17,0.05370932]
[1741631627479,66.28042772,118.21,118.17,0.05370932]
[1741631627683,0.05410065,118.19,118.17,0.05370932]
[1741631628276,8.4657,118.18,118.17,0.05370932]
[1741631628675,8.4657,118.18,118.08,199.0131]
[1741631628676,2.54,118.18,118.08,4.0131]
[1741631628982,66.28042772,118.16,118.08,4.0131]
[1741631629181,66.28042772,118.18,118.08,4.0131]
[1741631629382,66.28042772,118.2,118.08,4.0131]
[1741631629582,66.28042772,118.2,118.09,66.28042772]
[1741631629778,0.05918356,118.15,118.13,0.06383472]
[1741631630283,0.05347418,118.15,118.13,0.05711443]
[1741631630478,0.05347418,118.15,118.08,4.0131]
[1741631630976,66.28042772,118.14,118.08,4.0131]
[1741631631177,66.28042772,118.14,118.06,199.6248]
[1741631631583,0.05966261,118.11,118.09,0.05902868]
[1741631631982,66.34009033,118.11,118.04,4.1429]
[1741631632177,66.34009033,118.11,118.01,8.3806]
[1741631632378,66.28042772,118.09,118.01,8.3806]
[1741631632577,66.28042772,118.09,118.04,8.4757]
[1741631632779,279.56,118.13,118.01,74.66102772]
[1741631632979,279.56,118.13,118.03,66.28042772]
[1741631633173,0.06376342,118.08,118.06,8.53252604]
[1741631633375,279.56,118.13,118.06,0.05822604]
[1741631633585,66.28042772,118.18,118.07,66.28042772]
[1741631633884,66.28042772,118.16,118.07,8.3188]
[1741631634384,66.28042772,118.14,118.07,4.267]
[1741631634684,66.28042772,118.14,118.03,257.28042772]
[1741631635184,0.06334412,118.1,118.07,0.06268886]
[1741631635382,66.28042772,118.16,118.03,257.28042772]
[1741631635583,0.05620222,118.1,118.07,0.06385175]
[1741631635777,66.56112772,118.18,118.06,66.28042772]
[1741631635980,66.56112772,118.18,118.07,0.06236237]
[1741631636186,0.05620354,118.1,118.07,0.06236237]
[1741631636379,0.05419364,118.1,118.07,0.05798519]
[1741631636579,66.56112772,118.18,118.07,0.05798519]
[1741631637086,66.56112772,118.18,118.06,66.28042772]
[1741631637587,66.28042772,118.16,118.03,257.28042772]
[1741631637787,0.06427335,118.13,118.11,0.05803259]
[1741631637982,0.06427335,118.13,118.03,257.28042772]
[1741631638181,66.28042772,118.16,118.11,0.05859562]
[1741631638382,0.06003712,118.13,118.03,257.28042772]
[1741631638582,66.28042772,118.14,118.04,8.4755]
[1741631638777,66.28042772,118.14,118.03,257.28042772]
[1741631638981,66.28042772,118.16,118.03,257.28042772]
[1741631639181,0.1474,118.17,118.05,66.28042772]
[1741631639388,0.1474,118.17,118.07,66.28042772]
[1741631639580,66.56112772,118.18,118.07,66.28042772]
[1741631639786,0.0535201,118.13,118.11,0.05540313]
[1741631639991,200.0,118.16,118.11,66.28042772]
[1741631640292,0.05337215,118.13,118.11,0.06332311]
[1741631640691,0.05337215,118.13,118.12,8.47]
[1741631640987,0.05337215,118.13,118.11,0.06332311]
[1741631641193,0.05337215,118.13,118.12,8.47]
[1741631641491,200.0,118.16,118.12,8.47]
[1741631641683,200.0,118.16,118.11,66.34375083]
[1741631641886,200.0,118.16,118.15,8.4678]
[1741631642086,84.92025904,118.16,118.15,74.74822772]
[1741631642383,84.92025904,118.16,118.1,191.0]
[1741631642583,151.20068676,118.16,118.03,66.28042772]
[1741631642783,84.92025904,118.16,118.03,66.28042772]
[1741631642988,84.92025904,118.16,118.06,66.28042772]
[1741631643291,84.92025904,118.16,118.06,257.28042772]
[1741631643887,0.05520363,118.12,118.1,0.05715811]
[1741631646487,0.05520363,118.12,118.04,8.4754]
[1741631646687,0.05520363,118.12,118.02,191.0]
[1741631646889,4.1761,118.13,118.05,66.28042772]
[1741631647287,4.1761,118.13,118.07,8.4734]
[1741631647500,4.1761,118.13,118.06,4.3284]
[1741631647791,0.06129145,118.1,118.09,8.4721]
[1741631648091,0.06129145,118.1,118.08,0.05649857]
[1741631649391,0.06129145,118.1,118.09,8.4721]
[1741631649589,0.06129145,118.1,118.08,0.05649857]
[1741631650696,8.4721,118.09,118.08,0.05649857]
[1741631650895,66.34171917,118.1,118.08,0.05649857]
[1741631651296,8.4721,118.09,118.08,0.05649857]
[1741631651491,8.4721,118.09,118.02,191.0]
[1741631651796,8.4721,118.09,118.04,8.4753]
[1741631651997,79.11672772,118.12,118.02,191.0]
[1741631652295,12.8363,118.12,118.02,191.0]
[1741631652490,4.366,118.12,118.02,191.0]
[1741631652690,0.06448326,118.08,118.06,0.05378426]
[1741631653795,8.53768326,118.08,118.06,0.05378426]
[1741631653996,0.06448326,118.08,118.06,0.05378426]
[1741631654190,8.4736,118.07,118.06,0.05378426]
[1741631654391,66.34491098,118.08,117.98,4.2909]
[1741631654693,4.0513,118.07,118.02,8.4766]
[1741631654894,4.0513,118.07,117.98,8.5913]
[1741631655591,0.06169217,118.04,118.01,0.0645718]
[1741631657500,345.80042772,118.1,118.01,68.88499952]
[1741631657501,279.52,118.1,118.01,68.88499952]
[1741631657695,279.52,118.1,118.02,3.9866]
[1741631658297,279.52,118.1,118.04,8.4754]
[1741631658696,8.53554184,118.08,118.06,0.0649053]
[1741631658998,0.06234184,118.08,118.06,0.0649053]
[1741631660394,8.4747,118.06,118.01,191.0]
[1741631660599,4.3652,118.07,117.98,4.2176]
[1741631660898,287.9929,118.08,118.0,66.28042772]
[1741631661199,279.52,118.08,118.0,66.28042772]
[1741631661699,0.05618734,118.05,118.03,0.06267891]
[1741631662093,0.05618734,118.05,118.03,8.53847891]
[1741631662288,0.05618734,118.05,118.03,0.06267891]
[1741631662699,279.54,118.1,118.03,0.06267891]
[1741631663192,4.3786,118.11,118.03,66.34310663]
[1741631663395,8.4701,118.12,118.05,66.28042772]
[1741631663702,4.3786,118.14,118.06,4.3195]
[1741631663999,0.06514878,118.1,118.07,0.05520176]
[1741631665095,66.3455765,118.1,118.07,0.05520176]
[1741631665399,8.4743,118.06,118.01,8.4776]
[1741631665596,4.1918,118.09,118.0,4.3195]
[1741631666001,8.4736,118.07,118.02,8.4767]
[1741631666193,3.9946,118.08,118.0,4.3195]
[1741631666393,0.05943211,118.06,118.05,8.475]
[1741631666600,66.28042772,118.09,118.0,195.3195]
[1741631666796,66.3380087,118.07,118.04,0.06437969]
[1741631667102,4.4076,118.06,118.0,4.3195]
[1741631667491,8.4772,118.02,118.0,4.3195]
[1741631667691,8.7765,118.06,117.96,195.2826]
[1741631667896,66.28042772,118.05,117.96,199.5271]
[1741631668097,0.05354988,118.03,118.01,0.06411092]
[1741631668294,66.3339776,118.03,117.96,4.2445]
[1741631668599,8.4797,117.99,117.93,99.53387682]
[1741631668794,0.05354988,118.03,117.93,91.05027682]
[1741631669000,8.7765,118.06,117.94,66.28042772]
[1741631669200,10.47055387,118.06,117.94,66.28042772]
[1741631669391,0.05566386,118.01,117.94,66.28042772]
[1741631669596,0.05566386,118.01,117.99,0.05879762]
[1741631669795,0.05566386,118.01,117.92,74.94172772]
[1741631669995,10.47055387,118.06,117.99,0.05660334]
[1741631670199,0.05757669,118.0,117.94,66.28042772]
[1741631670495,10.47055387,118.06,117.94,66.28042772]
[1741631670701,0.06118032,117.98,117.96,0.06451944]
[1741631670998,10.47055387,118.06,117.94,66.28042772]
[1741631671491,66.28042772,118.01,117.92,8.6613]
[1741631671698,66.28042772,118.03,117.92,74.94172772]
[1741631671897,8.4791,118.0,117.95,8.4821]
[1741631672098,0.05972052,117.98,117.95,8.54028538]
[1741631672298,0.05972052,117.98,117.95,0.05818538]
[1741631673498,0.05972052,117.98,117.96,8.481]
[1741631673699,0.05972052,117.98,117.95,0.05818538]
[1741631674004,0.05972052,117.98,117.96,8.481]
[1741631674203,0.05972052,117.98,117.95,0.05818538]
[1741631674697,4.1648,118.05,117.96,66.28042772]
[1741631675293,1.69405387,118.06,117.94,66.28042772]
[1741631675493,4.1648,118.05,117.94,66.28042772]
[1741631675703,8.4783,118.01,117.96,8.4811]
[1741631676003,0.05669115,118.01,117.98,0.06232257]
[1741631676400,8.479,118.0,117.95,8.4818]
[1741631676605,0.05494237,118.01,117.98,0.06473423]
[1741631676802,66.28042772,118.01,117.98,0.06473423]
[1741631676999,66.28042772,118.01,117.93,8.4831]
[1741631677200,66.33867815,118.01,117.98,0.05998657]
[1741631677504,66.28042772,118.01,117.98,0.05998657]
[1741631677700,66.34258973,118.01,117.98,0.05998657]
[1741631677901,66.34258973,118.01,117.9,66.28042772]
[1741631678100,279.66,118.02,117.91,4.0172]
[1741631678306,279.66,118.02,117.92,66.28042772]
[1741631678701,4.1648,118.05,117.94,66.28042772]
[1741631678910,72.13942509,118.05,117.97,8.4805]
[1741631679108,0.05732493,118.01,117.98,0.06158628]
[1741631681206,8.4809,117.97,117.92,8.4839]
[1741631681406,66.28042772,117.97,117.89,4.1855]
[1741631681604,66.28042772,117.95,117.86,195.204]
[1741631681807,66.28042772,117.95,117.86,4.204]
[1741631682205,4.3854,117.96,117.86,4.204]
[1741631682505,0.05413471,117.92,117.89,0.0628882]
[1741631684703,8.53893471,117.92,117.89,0.0628882]
[1741631684905,0.05413471,117.92,117.89,0.0628882]
[1741631685106,66.28042772,117.9,117.82,8.6296]
[1741631685501,66.28042772,117.92,117.82,4.3388]
[1741631685706,8.4859,117.9,117.84,8.4894]
[1741631685905,66.28042772,117.92,117.82,4.3388]
[1741631686098,8.4857,117.91,117.84,8.4894]
[1741631686307,0.05407592,117.88,117.84,8.4894]
[1741631686504,0.05407592,117.88,117.82,70.61922772]
[1741631687302,0.05407592,117.88,117.86,8.4882]
[1741631687698,0.05407592,117.88,117.84,66.28042772]
[1741631687903,288.284,117.93,117.84,257.28042772]
[1741631687904,8.484,117.93,117.84,257.28042772]
[1741631688109,70.66582772,117.96,117.84,257.28042772]
[1741631688412,8.4826,117.95,117.86,66.28042772]
[1741631688597,4.2902,117.97,117.88,66.28042772]
[1741631688803,4.2902,117.97,117.89,8.2881]
[1741631689111,0.05928908,117.94,117.92,0.06032743]
[1741631689810,0.05928908,117.94,117.93,8.4836]
[1741631690108,8.2471,118.0,117.92,0.06032743]
[1741631690307,8.2471,118.0,117.9,66.28042772]
[1741631690510,8.4804,117.98,117.94,8.4822]
[1741631690808,8.2471,118.0,117.9,66.28042772]
[1741631691308,0.06191761,117.96,117.94,0.06484028]
[1741631692108,0.06191761,117.96,117.89,4.2632]
[1741631692511,8.54371761,117.96,117.91,8.485]
[1741631692705,8.54371761,117.96,117.89,4.2632]
[1741631692908,0.06191761,117.96,117.89,4.2632]
[1741631693412,0.06191761,117.96,117.91,0.06035592]
[1741631693608,0.06191761,117.96,117.94,8.4826]
[1741631693818,0.06191761,117.96,117.9,66.28042772]
[1741631694010,0.06191761,117.96,117.94,0.06035592]
[1741631694210,0.06191761,117.96,117.94,8.54315592]
[1741631694715,0.06191761,117.96,117.94,0.06035592]
[1741631696515,8.54361761,117.96,117.94,0.06035592]
[1741631696711,200.06191761,117.96,117.94,0.06035592]
[1741631697015,66.28042772,117.95,117.89,4.2632]
[1741631697218,66.28042772,117.93,117.86,4.394]
[1741631697515,66.28042772,117.91,117.84,4.0914]
[1741631697718,66.28042772,117.89,117.8,8.5348]
[1741631698015,66.28042772,117.89,117.8,4.1645]
[1741631698016,66.28042772,117.87,117.8,4.1645]
[1741631698215,0.06312242,117.85,117.79,97.9095956]
[1741631698810,0.06312242,117.85,117.79,4.0914]
[1741631699016,0.06312242,117.85,117.8,8.4925]
[1741631699219,0.06312242,117.85,117.79,4.0914]
[1741631699513,66.28042772,117.83,117.76,93.8181956]
[1741631699715,74.77152772,117.83,117.76,102.3139956]
[1741631699916,0.0613314,117.81,117.76,93.8181956]
[1741631700608,0.0613314,117.81,117.76,160.09862332]
[1741631701216,1.69721656,117.84,117.83,8.4908]
[1741631701414,279.84,117.88,117.83,8.4908]
[1741631701920,279.84,117.88,117.83,8.4904]
[1741631702114,279.84,117.88,117.81,8.7265]
[1741631702418,8.5828,117.92,117.84,0.05344812]
[1741631702419,0.06163253,117.87,117.84,0.05344812]
[1741631702619,0.06163253,117.87,117.86,8.4886]
[1741631702912,4.1602,117.92,117.86,8.4886]
[1741631703114,66.28042772,117.87,117.81,191.0]
[1741631703316,66.28042772,117.85,117.75,8.5033]
[1741631703512,66.28042772,117.83,117.69,191.0]
[1741631703813,66.28042772,117.81,117.7,8.4509]
[1741631704012,0.05882859,117.77,117.74,0.06279129]
[1741631704209,66.28042772,117.77,117.74,0.06279129]
[1741631704414,0.05785585,117.77,117.74,0.0535353]
[1741631704609,66.28042772,117.75,117.66,93.8181956]
[1741631704810,66.28042772,117.73,117.66,93.8181956]
[1741631705314,66.28042772,117.73,117.62,411.96026927]
[1741631705315,279.94,117.72,117.7,93.8181956]
[1741631705714,279.99789148,117.72,117.7,93.88336342]
[1741631705917,279.99789148,117.72,117.7,87.23526342]
[1741631706113,67.9795187,117.71,117.69,77.0509446]
[1741631706311,67.9795187,117.71,117.62,135.68692544]
[1741631706512,66.28042772,117.66,117.62,135.68692544]
[1741631706915,74.78412772,117.66,117.62,135.68692544]
[1741631707112,66.28042772,117.66,117.62,135.68692544]
[1741631707315,0.0650363,117.65,117.62,135.68692544]
[1741631707715,66.28042772,117.68,117.62,135.68692544]
[1741631707911,0.06512125,117.65,117.62,135.68692544]
[1741631708116,66.28042772,117.64,117.62,135.68692544]
[1741631708518,68.84042772,117.64,117.5,191.0]
[1741631708816,66.28042772,117.62,117.52,66.28042772]
[1741631709018,0.06470737,117.58,117.54,8.5111]
[1741631709214,0.06470737,117.58,117.52,66.28042772]
[1741631709413,0.06470737,117.58,117.5,66.28042772]
[1741631709609,280.32470737,117.58,117.48,257.28042772]
[1741631709814,346.54042772,117.58,117.48,257.28042772]
[1741631710011,0.05438886,117.54,117.5,66.28042772]
[1741631710321,1.70053566,117.61,117.48,191.0]
[1741631710322,1.70053566,117.61,117.52,66.28042772]
[1741631710513,1.70053566,117.61,117.54,66.28042772]
[1741631710707,1.70053566,117.61,117.52,66.28042772]
[1741631711316,0.06541511,117.58,117.55,0.0581808]
[1741631711621,1.70053566,117.61,117.55,12.8366808]
[1741631711924,10.20783566,117.61,117.55,12.8366808]
[1741631712121,10.20783566,117.61,117.56,66.28042772]
[1741631712122,1.70053566,117.61,117.56,66.28042772]
[1741631712420,280.38,117.68,117.58,66.28042772]
[1741631712619,67.98009628,117.67,117.56,66.28042772]
[1741631712816,0.06386538,117.6,117.57,8.5094]
[1741631713017,67.98009628,117.67,117.6,0.06351018]
[1741631713218,67.98009628,117.67,117.56,66.28042772]
[1741631713219,66.28042772,117.65,117.55,12.7785]
[1741631713419,1.700102,117.64,117.55,12.7785]
[1741631713717,66.28042772,117.63,117.55,12.7785]
[1741631714024,8.5097,117.57,117.5,8.5145]
[1741631714223,346.66042772,117.59,117.49,8.5669]
[1741631714721,1.70096955,117.58,117.49,4.3915]
[1741631714928,0.06113468,117.55,117.53,0.05524365]
[1741631716719,8.5118,117.54,117.53,0.05524365]
[1741631716921,66.28042772,117.54,117.45,191.0]
[1741631717125,66.28042772,117.51,117.39,66.28042772]
[1741631717325,8.5182,117.46,117.39,66.28042772]
[1741631717524,8.5182,117.46,117.38,12.9122]
[1741631717729,8.5163,117.48,117.38,12.9122]
[1741631718023,282.22212765,117.5,117.41,66.28042772]
[1741631718215,0.05726295,117.44,117.43,66.28042772]
[1741631718416,290.73692765,117.5,117.43,66.28042772]
[1741631718417,1.70212765,117.5,117.43,66.28042772]
[1741631718621,1.70212765,117.5,117.46,66.28042772]